fUST/lending_fUST_20250902
["ID","MTS","AMOUNT","RATE_DAILY","PERIOD"]
[382944607,1756781149479,500.0,0.00012999,2]
[382944608,1756781149532,500.0,0.00012999,2]
[382944609,1756781149568,500.0,0.00012999,2]
[382944610,1756781160725,500.0,0.00012999,2]
[382944611,1756781160776,599.52739648,0.00012999,2]
[382944614,1756781180068,666.0,0.00012482,2]
[382944616,1756781193304,500.0,0.00012999,2]
[382944617,1756781193641,500.0,0.00012999,2]
[382944618,1756781198983,500.0,0.00012999,2]
[382944619,1756781199322,500.0,0.00012999,2]
[382944620,1756781199696,500.0,0.00012999,2]
[382944621,1756781200072,500.0,0.00012999,2]
[382944622,1756781200647,500.0,0.00012999,2]
[382944623,1756781200730,450.11072801,0.00012999,2]
[382944624,1756781200795,500.0,0.00012999,2]
[382944625,1756781231972,914.0,0.0001297,2]
[382944631,1756781292903,45764.8,0.00030113,60]
[382944634,1756781332611,13332.0,0.00030113,60]
[382945589,1756781448448,300.0,0.00012871,2]
[382946437,1756781457252,300.0,0.00012871,2]
[382946517,1756781458012,480.0,0.000125,2]
[382947067,1756781463667,480.0,0.000125,2]
[382947481,1756781468182,480.0,0.000125,2]
[382947839,1756781471742,480.0,0.000125,2]
[382948214,1756781475918,480.0,0.000125,2]
[382948720,1756781480989,300.0,0.00012871,2]
[382948890,1756781483014,480.0,0.000125,2]
[382949292,1756781487024,480.0,0.000125,2]
[382949788,1756781492389,480.0,0.000125,2]
[382950375,1756781498418,480.0,0.000125,2]
[382950968,1756781504913,300.0,0.00012871,2]
[382951008,1756781505538,480.0,0.000125,2]
[382951523,1756781511880,480.0,0.000125,2]
[382952110,1756781518016,745.12,0.000125,2]
[382952239,1756781519543,267.93,0.00012329,2]
[382952340,1756781520520,300.0,0.00012871,2]
[382953098,1756781529980,223.27,0.00012329,2]
[382953119,1756781530171,300.0,0.00012871,2]
[382953679,1756781536074,480.0,0.000125,2]
[382953977,1756781539009,289.69,0.00012871,2]
[382953981,1756781539037,1210.31,0.00012871,2]
[382954134,1756781540648,186.06,0.00012329,2]
[382954178,1756781541078,480.0,0.000125,2]
[382954799,1756781547531,1500.0,0.00012871,2]
[382955167,1756781551309,155.05,0.00012329,2]
[382955633,1756781556304,1500.0,0.00012871,2]
[382956150,1756781561814,775.29,0.00012329,2]
[382956452,1756781564783,703.05262332,0.00012871,2]
[382956621,1756781566323,3490.24737668,0.000125,2]
[382956643,1756781566519,2269.75262332,0.000125,2]
[382957811,1756781580557,1500.0,0.00012871,2]
[382958527,1756781589482,1200.0,0.00012871,2]
[382958929,1756781593734,3000.0,0.00025,30]
[382960063,1756781605360,1200.0,0.00012871,2]
[382960964,1756781614774,1200.0,0.00012871,2]
[382962238,1756781632165,1200.0,0.00012871,2]
[382962239,1756781641423,1200.0,0.00012871,2]
[382962249,1756781658031,230.25737668,0.00012871,2]
[382962250,1756781658054,969.74262332,0.00012871,2]
[382962251,1756781665987,1200.0,0.00012871,2]
[382962253,1756781670646,2000.0,0.00012732,2]
[382962254,1756781682260,1200.0,0.00012871,2]
[382962255,1756781690638,1200.0,0.00012871,2]
[382962256,1756781707192,1200.0,0.00012871,2]
[382962257,1756781715233,1200.0,0.00012871,2]
[382962258,1756781731177,1030.26737668,0.00012871,2]
[382962259,1756781731201,169.73262332,0.00012871,2]
[382962260,1756781739783,1200.0,0.00012871,2]
[382962262,1756781756428,1200.0,0.00012871,2]
[382962263,1756781764676,1200.0,0.00012871,2]
[382962264,1756781781263,1200.0,0.00012871,2]
[382962265,1756781789139,1200.0,0.00012871,2]
[382962266,1756781805404,1200.0,0.00012871,2]
[382962267,1756781814215,1200.0,0.00012871,2]
[382962269,1756781837684,1413.17467379,0.00012872,2]
[382962270,1756781860827,17.10270289,0.00012872,2]
[382962271,1756781860852,1396.0719709,0.00012872,2]
[382962272,1756781884477,1413.17467379,0.00012872,2]
[382962274,1756781907164,1413.17467379,0.00012872,2]
[382962275,1756781930063,1413.17467379,0.00012872,2]
[382962276,1756781954354,1413.17467379,0.00012872,2]
[382962277,1756781977775,1413.17467379,0.00012872,2]
[382962278,1756782001716,1413.17467379,0.00012872,2]
[382962279,1756782026919,124.88998636,0.00012872,2]
[382962280,1756782026943,1288.28468743,0.00012872,2]
[382962281,1756782051720,1413.17467379,0.00012872,2]
[382962282,1756782076680,1413.17467379,0.00012872,2]
[382962283,1756782100673,1413.17467379,0.00012872,2]
[382962284,1756782110390,849.68,0.0001277,14]
[382962285,1756782124255,1413.17467379,0.00012872,2]
[382962286,1756782137601,154.249456,0.00025,30]
[382962287,1756782137905,235.73451007,0.00012872,2]
[382962288,1756782148210,1413.17467379,0.00012872,2]
[382962289,1756782171391,560.43743355,0.00012872,2]
[382962290,1756782171413,852.73724024,0.00012872,2]
[382962291,1756782195297,1413.17467379,0.00012872,2]
[382962292,1756782220157,1413.17467379,0.00012872,2]
[382962294,1756782244791,1413.17467379,0.00012872,2]
[382962295,1756782267840,1413.17467379,0.00012872,2]
[382962296,1756782290582,1413.17467379,0.00012872,2]
[382962297,1756782315445,1413.17467379,0.00012872,2]
[382962298,1756782339329,668.22471702,0.00012872,2]
[382962299,1756782339352,744.94995677,0.00012872,2]
[382962300,1756782363292,1413.17467379,0.00012872,2]
[382962301,1756782366019,241.3472365,0.00012872,2]
[382962302,1756782367230,206.86905985,0.00012872,2]
[382962303,1756782368140,177.31633702,0.00012872,2]
[382962304,1756782369151,151.98543173,0.00012872,2]
[382962305,1756782385587,1413.17467379,0.00012872,2]
[382962306,1756782402468,1413.17467379,0.00012872,2]
[382962307,1756782426243,1413.17467379,0.00012872,2]
[382962308,1756782449277,1413.17467379,0.00012872,2]
[382962309,1756782471667,1413.17467379,0.00012872,2]
[382962311,1756782496038,1413.17467379,0.00012872,2]
[382962312,1756782519010,1413.17467379,0.00012872,2]
[382962313,1756782542141,1413.17467379,0.00012872,2]
[382962314,1756782564753,1413.17467379,0.00012872,2]
[382962315,1756782587155,1413.17467379,0.00012872,2]
[382962316,1756782599047,107.78728347,0.00012872,2]
[382962317,1756782599069,1305.38739032,0.00012872,2]
[382962318,1756782619142,992.29561085,0.00012902,2]
[382962319,1756782624194,216.98058095,0.00012872,2]
[382962347,1756782638139,-216.98058095,0.00013002,2]
[382962348,1756782638149,-216.98058095,0.00013133,2]
[382962349,1756782638157,-1200.0,0.00013258,2]
[382962350,1756782638166,-300.0,0.0001326,2]
[382962351,1756782638174,-300.0,0.0001326,2]
[382962352,1756782638183,-191.41637982,0.0001326,2]
[382962353,1756782638194,-1008.58362018,0.0001326,2]
[382962354,1756782638203,-67.51277982,0.00013261,2]
[382962355,1756782638214,-232.48722018,0.00013261,2]
[382962356,1756782638223,-300.0,0.00013261,2]
[382962357,1756782638232,-300.0,0.00013261,2]
[382962358,1756782638241,-300.0,0.00013261,2]
[382962359,1756782638250,-300.0,0.00013261,2]
[382962360,1756782638259,-2524.82941417,0.00013297,2]
[382962361,1756782638269,-975.0,0.00013305,2]
[382962362,1756782638278,-11.87120206,0.00013305,2]
[382962363,1756782638289,-2141.12879794,0.00013305,2]
[382962364,1756782638298,-632.0,0.00013305,2]
[382962365,1756782638307,-204.226769,0.00013305,10]
[382962366,1756782638316,-2264.64607543,0.00013498,2]
[382962367,1756782638324,-165.1987079,0.000135,2]
[382962369,1756782638333,-791.6785951,0.000135,2]
[382962370,1756782638343,-682.45550633,0.0001356,2]
[382962371,1756782638351,-602.98407686,0.0001358,2]
[382962372,1756782638361,-444.86394318,0.00013598,2]
[382962373,1756782638370,-209.40437684,0.00013662,2]
[382962374,1756782638378,-177.63085517,0.00013667,2]
[382962375,1756782638387,-444.86394314,0.00013667,2]
[382962376,1756782638396,-361.259,0.00013667,2]
[382962377,1756782638406,-199.31707046,0.0001367,2]
[382962378,1756782638414,-151.18034038,0.0001367,2]
[382962379,1756782638423,-200.24556279,0.0001367,2]
[382962380,1756782638432,-204.5304045,0.0001367,2]
[382962381,1756782638441,-198.77219804,0.0001367,2]
[382962382,1756782638451,-472.33525825,0.0001367,2]
[382962383,1756782638460,-230.98518225,0.0001367,2]
[382962384,1756782638468,-278.31565323,0.0001367,2]
[382962385,1756782638477,-500.0,0.0001367,2]
[382962386,1756782638486,-500.0,0.0001367,2]
[382962387,1756782638495,-500.0,0.0001367,2]
[382962388,1756782638503,-500.0,0.0001367,2]
[382962389,1756782638512,-442.53018735,0.0001367,2]
[382962390,1756782638521,-500.0,0.0001367,2]
[382962391,1756782638530,-500.0,0.0001367,2]
[382962392,1756782638539,-599.69446206,0.0001367,2]
[382962393,1756782638547,-500.0,0.0001367,2]
[382962394,1756782638555,-359.38602563,0.0001367,2]
[382962395,1756782638564,-500.0,0.0001367,2]
[382962396,1756782638573,-500.0,0.0001367,2]
[382962397,1756782638582,-500.0,0.0001367,2]
[382962398,1756782638591,-344.41275432,0.0001367,2]
[382962399,1756782638600,-534.19175112,0.0001367,2]
[382962400,1756782638608,-500.0,0.0001367,2]
[382962401,1756782638617,-500.0,0.0001367,2]
[382962402,1756782638626,-500.0,0.0001367,2]
[382962403,1756782638635,-500.0,0.0001367,2]
[382962404,1756782638644,-500.0,0.0001367,2]
[382962405,1756782638653,-500.0,0.0001367,2]
[382962406,1756782638662,-16.6879914,0.0001367,2]
[382962407,1756782638679,-483.3120086,0.0001367,2]
[382962408,1756782638687,-500.0,0.0001367,2]
[382962409,1756782638697,-500.0,0.0001367,2]
[382962410,1756782638705,-500.0,0.0001367,2]
[382962411,1756782638714,-363.96789481,0.0001367,2]
[382962527,1756782644160,-136.03210519,0.0001367,2]
[382962529,1756782644170,-500.0,0.0001367,2]
[382962531,1756782644179,-461.96789481,0.0001367,2]
[382962533,1756782644192,-38.03210519,0.0001367,2]
[382962535,1756782644202,-395.32634788,0.0001367,2]
[382962537,1756782644211,-500.0,0.0001367,2]
[382962540,1756782644221,-500.0,0.0001367,2]
[382962542,1756782644230,-500.0,0.0001367,2]
[382962544,1756782644240,-500.0,0.0001367,2]
[382962546,1756782644250,-500.0,0.0001367,2]
[382962548,1756782644260,-500.0,0.0001367,2]
[382962550,1756782644269,-500.0,0.0001367,2]
[382962552,1756782644279,-500.0,0.0001367,2]
[382962554,1756782644288,-500.0,0.0001367,2]
[382962556,1756782644297,-500.0,0.0001367,2]
[382962558,1756782644306,-500.0,0.0001367,2]
[382962560,1756782644315,-500.0,0.0001367,2]
[382962562,1756782644325,-500.0,0.0001367,2]
[382962564,1756782644334,-500.0,0.0001367,2]
[382962565,1756782644343,-500.0,0.0001367,2]
[382962567,1756782644352,-500.0,0.0001367,2]
[382962569,1756782644362,-500.0,0.0001367,2]
[382962571,1756782644371,-500.0,0.0001367,2]
[382962573,1756782644380,-500.0,0.0001367,2]
[382962575,1756782644389,-500.0,0.0001367,2]
[382962578,1756782644399,-500.0,0.0001367,2]
[382962580,1756782644408,-249.99999999,0.0001367,2]
[382962582,1756782644417,-198.84089647,0.00013671,2]
[382962584,1756782644426,-151.0,0.00013671,2]
[382962586,1756782644435,-151.0,0.00013671,2]
[382962588,1756782644445,-151.0,0.00013671,2]
[382962590,1756782644454,-200.46617878,0.00013671,2]
[382962592,1756782644463,-151.0,0.00013671,2]
[382962594,1756782644472,-295.13723842,0.00013671,2]
[382962596,1756782644481,-198.35751113,0.00013671,2]
[382962598,1756782644491,-151.0,0.00013671,2]
[382962600,1756782644500,-153.38887028,0.00013671,2]
[382962602,1756782644510,-151.0,0.00013671,2]
[382962604,1756782644519,-151.0,0.00013671,2]
[382962605,1756782644529,-199.81084819,0.00013671,2]
[382962607,1756782644538,-151.0,0.00013671,2]
[382962609,1756782644547,-151.0,0.00013671,2]
[382962611,1756782644556,-151.0,0.00013671,2]
[382962613,1756782644565,-151.0,0.00013671,2]
[382962615,1756782644574,-543.0,0.00013671,2]
[382962617,1756782644583,-500.0,0.00013672,2]
[382962619,1756782644592,-501.23387356,0.00013673,2]
[382962621,1756782644601,-500.0,0.00013673,2]
[382962623,1756782644610,-278.03472348,0.00013673,2]
[382962625,1756782644619,-223.12969809,0.00013673,2]
[382962627,1756782644628,-500.0,0.00013673,2]
[382962629,1756782644637,-500.0,0.00013673,2]
[382962631,1756782644646,-351.77240634,0.00013673,2]
[382962633,1756782644656,-297.72632341,0.00013673,2]
[382962634,1756782644664,-500.0,0.00013673,2]
[382962635,1756782644674,-500.0,0.00013673,2]
[382962636,1756782644683,-271.49381794,0.00013673,2]
[382962637,1756782644694,-501.28954929,0.00013673,2]
[382962638,1756782644703,-501.57761675,0.00013673,2]
[382962639,1756782644713,-509.53681252,0.00013673,2]
[382962640,1756782644726,-500.0,0.00013673,2]
[382962641,1756782644735,-424.10870716,0.00013673,2]
[382962642,1756782644744,-500.41850444,0.00013673,2]
[382962643,1756782644754,-500.0,0.00013673,2]
[382962644,1756782644763,-500.0,0.00013673,2]
[382962645,1756782644774,-500.0,0.00013673,2]
[382962646,1756782644784,-638.44868927,0.00013673,2]
[382962647,1756782644793,-500.0,0.00013673,2]
[382962648,1756782644802,-500.0,0.00013673,2]
[382962649,1756782644811,-500.0,0.00013673,2]
[382962650,1756782644820,-500.0,0.00013673,2]
[382962651,1756782644829,-501.4254984,0.00013673,2]
[382962652,1756782644838,-500.0,0.00013673,2]
[382962653,1756782644848,-500.0,0.00013673,2]
[382962654,1756782644857,-501.89153322,0.00013673,2]
[382962655,1756782644871,-500.0,0.00013673,2]
[382962656,1756782644881,-501.43439383,0.00013673,2]
[382962657,1756782644890,-196.0092738,0.00013673,2]
[382962658,1756782644899,-783.2530581,0.00013673,2]
[382962659,1756782644910,-241.09940349,0.00013687,2]
[382962660,1756782644919,-500.0,0.00013687,2]
[382962661,1756782644928,-500.0,0.00013687,2]
[382962662,1756782644938,-500.0,0.00013687,2]
[382962664,1756782644948,-500.0,0.00013687,2]
[382962666,1756782644957,-392.96175273,0.00013687,2]
[382962668,1756782644967,-500.0,0.00013687,2]
[382962670,1756782644976,-500.0,0.00013687,2]
[382962672,1756782644985,-500.0,0.00013687,2]
[382962674,1756782644996,-500.0,0.00013687,2]
[382962676,1756782645005,-500.0,0.00013687,2]
[382962678,1756782645014,-500.0,0.00013687,2]
[382962680,1756782645025,-550.0,0.00013687,2]
[382962682,1756782645034,-300.0,0.00013687,2]
[382962684,1756782645043,-550.96792661,0.00013687,2]
[382962686,1756782645052,-300.0,0.00013687,2]
[382962688,1756782645061,-450.0,0.00013687,2]
[382962690,1756782645070,-300.0,0.00013687,2]
[382962692,1756782645080,-450.003,0.00013687,2]
[382962694,1756782645089,-499.03207339,0.00013687,2]
[382962696,1756782645099,-254.997,0.00013687,2]
[382962698,1756782645107,-70244.79436785,0.00013688,2]
[382963010,1756782647974,152.99,0.00012329,2]
[382966022,1756782680255,7332.35641788,0.00012627,2]
[382966026,1756782680279,3906.17755212,0.00012627,2]
[382966995,1756782690190,203.89848199,0.00012902,2]
[382968486,1756782864847,256.59093725,0.00012872,2]
[382968487,1756782887890,256.59093725,0.00012872,2]
[382968488,1756782902430,1021.36,0.00025,30]
[382968489,1756782910866,256.59093725,0.00012872,2]
[382968490,1756782934568,256.59093725,0.00012872,2]
[382968491,1756782957665,256.59093725,0.00012872,2]
[382968492,1756782981767,256.59093725,0.00012872,2]
[382968493,1756783005588,256.59093725,0.00012872,2]
[382968494,1756783029196,256.59093725,0.00012872,2]
[382968495,1756783037995,256.59093725,0.00012872,2]
[382968496,1756783062996,256.59093725,0.00012872,2]
[382968497,1756783237062,256.59093725,0.00012872,2]
[382968504,1756783462618,256.59093725,0.00012872,2]
[382968505,1756783475291,875.0,0.00027397,120]
[382968517,1756783530739,952.1341596,0.00025,30]
[382968519,1756783541091,460.0,0.00027397,120]
[382968525,1756783709658,196.0,0.00025,30]
[382968827,1756783843623,-256.59093725,0.00013002,2]
[382968828,1756783843635,-256.59093725,0.00013133,2]
[382968829,1756783843644,-1132.69508017,0.00013384,2]
[382968838,1756783846812,-67.30491983,0.00013384,2]
[382968839,1756783846822,-201.74508017,0.00013385,2]
[382968845,1756784008230,189.475763,0.00024,30]
[382968849,1756784344198,151.0,0.00012999,2]
[382968851,1756784651042,189.475763,0.00012889,2]
[382968888,1756784875947,171.18194806,0.00012919,2]
[382968889,1756784898974,171.18194806,0.00012919,2]
[382968890,1756784921764,171.18194806,0.00012919,2]
[382968892,1756784944195,171.18194806,0.00012919,2]
[382968894,1756784968513,171.18194806,0.00012919,2]
[382968895,1756784991291,171.18194806,0.00012919,2]
[382968897,1756785015829,171.18194806,0.00012919,2]
[382968958,1756785032809,-171.18194806,0.0001305,2]
[382968959,1756785032818,-189.475763,0.0001315,2]
[382968960,1756785032827,-2266.67665911,0.0001315,6]
[382968961,1756785032836,-250.0,0.00013184,2]
[382968963,1756785032846,-914.0,0.00013383,2]
[382968965,1756785032854,-300.0,0.00013383,2]
[382968966,1756785032864,-300.0,0.00013383,2]
[382968968,1756785032874,-300.0,0.00013383,2]
[382968970,1756785032883,-974.63110682,0.00013383,2]
[382968971,1756785032895,-225.36889318,0.00013383,2]
[382968972,1756785032904,-300.0,0.00013383,2]
[382968974,1756785032913,-239.61145296,0.00013386,2]
[382968976,1756785032925,-735.38854704,0.00013386,2]
[382968977,1756785032934,-632.0,0.00013386,2]
[382968979,1756785032943,-1951.03988568,0.00013386,2]
[382968980,1756785032955,-201.96011432,0.00013386,2]
[382968981,1756785032964,-558.70571722,0.00013386,2]
[382968982,1756785032975,-49.16256066,0.00013386,2]
[382968983,1756785032984,-216.05926058,0.0001341,2]
[382968984,1756785033006,-371.19011686,0.0001341,2]
[382968985,1756785033017,-1291.04410946,0.0001341,2]
[382968986,1756785033029,-1688.75615171,0.0001341,2]
[382968987,1756785033039,-20.48984829,0.00013479,2]
[382968994,1756785038598,-264.7201795,0.00013479,2]
[382968995,1756785038608,-807.54173718,0.0001348,2]
[382968996,1756785038619,-168.0,0.00013486,2]
[382968997,1756785038628,-500.0,0.00013486,2]
[382968998,1756785038642,-189.90930132,0.00013486,2]
[382968999,1756785038654,-310.09069868,0.00013486,2]
[382969000,1756785038663,-220.55013257,0.00013486,2]
[382969034,1756785040704,-250.81095289,0.00013344,2]
[382969039,1756785040759,-13.90922661,0.00013344,2]
[382969040,1756785040768,-279.44986743,0.00013486,2]
[382969042,1756785040777,-139.97245765,0.00013486,2]
[382969144,1756785043655,-360.02754235,0.00013486,2]
[382969145,1756785043668,-168.76958245,0.00013486,2]
[382969146,1756785043678,-500.0,0.00013486,2]
[382969147,1756785043688,-500.0,0.00013486,2]
[382969148,1756785043697,-500.0,0.00013486,2]
[382969149,1756785043706,-500.0,0.00013486,2]
[382969150,1756785043716,-500.0,0.00013486,2]
[382969151,1756785043725,-500.0,0.00013486,2]
[382969152,1756785043736,-500.0,0.00013486,2]
[382969153,1756785043745,-500.0,0.00013486,2]
[382969154,1756785043754,-166.86145231,0.00013486,2]
[382969155,1756785043763,-500.0,0.00013486,2]
[382969156,1756785043772,-500.0,0.00013486,2]
[382969157,1756785043781,-428.66723374,0.00013486,2]
[382969158,1756785043790,-500.0,0.00013486,2]
[382969159,1756785043800,-170.46575013,0.00013486,2]
[382969160,1756785043809,-500.0,0.00013486,2]
[382969161,1756785043819,-500.0,0.00013486,2]
[382969162,1756785043830,-506.9721762,0.00013486,2]
[382969163,1756785043839,-230.1293791,0.00013486,2]
[382969164,1756785043850,-500.0,0.00013486,2]
[382969165,1756785043860,-500.0,0.00013486,2]
[382969166,1756785043869,-500.0,0.00013486,2]
[382969167,1756785043879,-500.0,0.00013486,2]
[382969168,1756785043889,-500.0,0.00013486,2]
[382969169,1756785043901,-500.0,0.00013486,2]
[382969170,1756785043910,-500.0,0.00013486,2]
[382969171,1756785043920,-500.0,0.00013486,2]
[382969172,1756785043929,-576.30721667,0.00013486,2]
[382969173,1756785043939,-442.56874228,0.00013486,2]
[382969174,1756785043948,-500.0,0.00013486,2]
[382969175,1756785043957,-500.0,0.00013486,2]
[382969176,1756785043969,-500.0,0.00013486,2]
[382969177,1756785043978,-500.0,0.00013486,2]
[382969178,1756785043987,-500.0,0.00013486,2]
[382969179,1756785043997,-500.0,0.00013486,2]
[382969180,1756785044006,-185.55143506,0.00013486,2]
[382969181,1756785044015,-500.0,0.00013486,2]
[382969182,1756785044027,-500.0,0.00013486,2]
[382969183,1756785044035,-500.0,0.00013486,2]
[382969184,1756785044044,-186.33263479,0.00013486,2]
[382969185,1756785044053,-500.0,0.00013486,2]
[382969186,1756785044062,-500.0,0.00013486,2]
[382969187,1756785044071,-250.0,0.00013486,2]
[382969188,1756785044081,-151.0,0.00013487,2]
[382969189,1756785044090,-151.0,0.00013487,2]
[382969190,1756785044099,-18499.65575148,0.00013487,2]
[382969193,1756785046864,-302.0,0.00013487,2]
[382969195,1756785194910,3000.0,0.00025,30]
[382969199,1756785863026,531.88474318,0.00012988,2]
[382969206,1756786187893,183.38425239,0.0003011,60]
[382969216,1756786231751,-568.88,0.00013163,2]
[382969285,1756786237787,-77.15338976,0.00013163,2]
[382969286,1756786237796,-531.88474318,0.00013286,2]
[382969287,1756786237806,-646.03338976,0.00013296,2]
[382969288,1756786237816,-646.03338973,0.00013372,2]
[382969289,1756786237826,-1949.76224872,0.00013379,2]
[382969290,1756786237835,-1135.0,0.00013384,2]
[382969291,1756786237845,-279.73253903,0.00013384,2]
[382969292,1756786237893,-20.26746097,0.00013384,2]
[382969293,1756786237903,-300.0,0.00013384,2]
[382969294,1756786237912,-300.0,0.00013384,2]
[382969295,1756786237923,-300.0,0.00013384,2]
[382969296,1756786237933,-1200.0,0.00013384,2]
[382969297,1756786237943,-500.0,0.00013386,2]
[382969298,1756786237952,-380.48615992,0.00013386,2]
[382969299,1756786237962,-500.0,0.00013386,2]
[382969300,1756786237972,-500.0,0.00013386,2]
[382969301,1756786237983,-500.0,0.00013386,2]
[382969302,1756786237993,-500.0,0.00013386,2]
[382969303,1756786238002,-500.0,0.00013386,2]
[382969304,1756786238012,-500.0,0.00013386,2]
[382969305,1756786238022,-500.0,0.00013386,2]
[382969306,1756786238031,-500.0,0.00013386,2]
[382969307,1756786238042,-500.0,0.00013386,2]
[382969308,1756786238051,-500.0,0.00013386,2]
[382969309,1756786238061,-500.0,0.00013386,2]
[382969310,1756786238071,-500.0,0.00013386,2]
[382969311,1756786238081,-500.0,0.00013386,2]
[382969312,1756786238092,-500.0,0.00013386,2]
[382969313,1756786238105,-500.0,0.00013386,2]
[382969314,1756786238115,-500.0,0.00013386,2]
[382969315,1756786238125,-500.0,0.00013386,2]
[382969316,1756786238137,-512.66021316,0.00013386,2]
[382969317,1756786238147,-500.0,0.00013386,2]
[382969318,1756786238157,-500.0,0.00013386,2]
[382969319,1756786238168,-393.93587782,0.00013386,2]
[382969320,1756786238180,-500.0,0.00013386,2]
[382969321,1756786238190,-338.88687799,0.00013386,2]
[382969322,1756786238200,-500.0,0.00013386,2]
[382969323,1756786238211,-500.0,0.00013386,2]
[382969324,1756786238223,-500.0,0.00013386,2]
[382969325,1756786238233,-500.0,0.00013386,2]
[382969326,1756786238243,-500.0,0.00013386,2]
[382969327,1756786238254,-466.35027104,0.00013386,2]
[382969328,1756786238265,-500.0,0.00013386,2]
[382969329,1756786238276,-500.0,0.00013386,2]
[382969330,1756786238286,-500.0,0.00013386,2]
[382969331,1756786238298,-500.0,0.00013386,2]
[382969332,1756786238309,-76.03805458,0.00013386,2]
[382969369,1756786242920,-423.96194542,0.00013386,2]
[382969370,1756786242930,-500.0,0.00013386,2]
[382969371,1756786242940,-500.0,0.00013386,2]
[382969372,1756786242950,-500.0,0.00013386,2]
[382969373,1756786242959,-500.0,0.00013386,2]
[382969374,1756786242968,-192.52359763,0.00013386,2]
[382969386,1756786243078,-307.47640237,0.00013386,2]
[382969388,1756786243088,-500.0,0.00013386,2]
[382969390,1756786243100,-500.0,0.00013386,2]
[382969392,1756786243110,-500.0,0.00013386,2]
[382969394,1756786243119,-500.0,0.00013386,2]
[382969396,1756786243129,-482.26955828,0.00013386,2]
[382969398,1756786243140,-500.0,0.00013386,2]
[382969400,1756786243149,-500.0,0.00013386,2]
[382969402,1756786243159,-500.0,0.00013386,2]
[382969404,1756786243169,-500.0,0.00013386,2]
[382969406,1756786243181,-151.0,0.00013387,2]
[382969408,1756786243192,-151.0,0.00013387,2]
[382969421,1756786243378,-198.705533,0.00013387,2]
[382969422,1756786243388,-90880.78358757,0.00013387,2]
[382969435,1756787015607,465.39915023,0.00012891,2]
[382969550,1756787440090,-428.65286409,0.00013262,2]
[382969575,1756787443132,-619.67339358,0.00013019,2]
[382969579,1756787446250,-716.53931282,0.00013019,2]
[382969580,1756787446311,-163.7872936,0.00013019,2]
[382969581,1756787446321,-36.74628614,0.00013262,2]
[382969582,1756787446331,-300.0,0.00013283,2]
[382969583,1756787446341,-100.43074418,0.00013283,2]
[382969584,1756787511782,185.51,0.00012329,2]
[382969585,1756787522317,154.59,0.00012329,2]
[382969586,1756787532733,772.96,0.00012329,2]
[382969587,1756787690500,835.2126673,0.00027397,120]
[382969588,1756787867357,1399.56925582,0.00012889,2]
[382969589,1756787867577,1000.0,0.00024,30]
[382969591,1756787965203,201.0,0.00025,120]
[382969592,1756788068389,-486.12000941,0.00013051,2]
[382969593,1756788068413,-486.12000941,0.00013183,2]
[382969594,1756788068435,-438.23072288,0.00013273,2]
[382969595,1756788068458,-300.0,0.00013275,2]
[382969596,1756788068479,-1200.0,0.00013276,2]
[382969597,1756788068502,-300.0,0.00013276,2]
[382969598,1756788068523,-300.0,0.00013276,2]
[382969599,1756788068546,-300.0,0.00013276,2]